[Event "*** Titled Tuesday Blitz"]
[Site "Chess.com"]
[Date "2020.04.14"]
[Round "7"]
[White "Carnivoras"]
[Black "SARGISMV"]
[Result "1-0"]
[WhiteElo "2639"]
[BlackElo "2478"]
[TimeControl "180+1"]
[EndTime "11:14:35 PDT"]
[Termination "Carnivoras won by checkmate"]

1. d4 {[%clk 0:03:00.9]} 1... e6 {[%clk 0:02:59.5]} 2. Nf3 {[%clk 0:03:00.1]}
2... Nf6 {[%clk 0:02:59.3]} 3. c4 {[%clk 0:02:59.5]} 3... c5 {[%clk 0:02:59.7]}
4. d5 {[%clk 0:02:59.4]} 4... exd5 {[%clk 0:03:00.6]} 5. cxd5 {[%clk 0:02:59.8]}
5... d6 {[%clk 0:03:01.2]} 6. Nc3 {[%clk 0:03:00.1]} 6... g6 {[%clk 0:03:02.1]}
7. g3 {[%clk 0:02:59.9]} 7... a6 {[%clk 0:03:01.8]} 8. Bg2 {[%clk 0:03:00.8]}
8... Bg7 {[%clk 0:03:02.2]} 9. O-O {[%clk 0:03:00.8]} 9... O-O {[%clk
0:03:02.7]} 10. a4 {[%clk 0:02:59.7]} 10... Re8 {[%clk 0:03:02.2]} 11. Qc2
{[%clk 0:02:58.9]} 11... Nbd7 {[%clk 0:03:02.5]} 12. e4 {[%clk 0:02:58.4]} 12...
Rb8 {[%clk 0:03:01.2]} 13. Bf4 {[%clk 0:02:56.9]} 13... Qc7 {[%clk 0:02:59.1]}
14. a5 {[%clk 0:02:44.3]} 14... Ng4 {[%clk 0:02:53.9]} 15. h3 {[%clk 0:02:41.6]}
15... Nge5 {[%clk 0:02:53.8]} 16. Nd2 {[%clk 0:02:41.4]} 16... b5 {[%clk
0:02:52]} 17. axb6 {[%clk 0:02:39.7]} 17... Rxb6 {[%clk 0:02:51.7]} 18. Be3
{[%clk 0:02:36.6]} 18... Rb4 {[%clk 0:02:48.6]} 19. f4 {[%clk 0:02:23.9]} 19...
Nc4 {[%clk 0:02:47.7]} 20. Nxc4 {[%clk 0:02:20.9]} 20... Rxc4 {[%clk 0:02:48.6]}
21. Ra4 {[%clk 0:02:12.9]} 21... Nb6 {[%clk 0:02:45.7]} 22. Rxc4 {[%clk
0:02:07.7]} 22... Nxc4 {[%clk 0:02:46.6]} 23. Qa4 {[%clk 0:02:02.5]} 23... Rxe4
{[%clk 0:02:21]} 24. Nxe4 {[%clk 0:01:51]} 24... Nxe3 {[%clk 0:02:20.7]} 25.
Qe8+ {[%clk 0:01:49.9]} 25... Bf8 {[%clk 0:02:20.9]} 26. Nf6+ {[%clk 0:01:39.8]}
26... Kg7 {[%clk 0:02:20.4]} 27. Qxe3 {[%clk 0:01:39.4]} 27... Kxf6 {[%clk
0:02:18]} 28. Qc3+ {[%clk 0:01:38.6]} 28... Ke7 {[%clk 0:02:18]} 29. Qh8 {[%clk
0:01:32.7]} 29... Qa5 {[%clk 0:02:13.5]} 30. Qxh7 {[%clk 0:01:20.3]} 30... Qd2
{[%clk 0:01:21.8]} 31. Qh4+ {[%clk 0:01:16.1]} 31... Kd7 {[%clk 0:01:17.5]} 32.
Qf6 {[%clk 0:01:11.8]} 32... Qd4+ {[%clk 0:01:17]} 33. Qxd4 {[%clk 0:01:10.9]}
33... cxd4 {[%clk 0:01:17.9]} 34. Rd1 {[%clk 0:01:10.8]} 34... Bg7 {[%clk
0:01:17.7]} 35. Kf2 {[%clk 0:01:10.3]} 35... Kc7 {[%clk 0:01:17.8]} 36. Bf1
{[%clk 0:01:05.2]} 36... Kb6 {[%clk 0:01:16.3]} 37. Rc1 {[%clk 0:01:04.4]} 37...
Bb7 {[%clk 0:01:09.7]} 38. Bc4 {[%clk 0:00:59.4]} 38... a5 {[%clk 0:00:59.4]}
39. Ke2 {[%clk 0:00:58.3]} 39... Bc8 {[%clk 0:00:52.3]} 40. g4 {[%clk
0:00:57.5]} 40... Bd7 {[%clk 0:00:44]} 41. Kd3 {[%clk 0:00:56.5]} 41... Bh6
{[%clk 0:00:44.1]} 42. Rf1 {[%clk 0:00:54.6]} 42... Kc5 {[%clk 0:00:40.7]} 43.
b3 {[%clk 0:00:49.1]} 43... Bc8 {[%clk 0:00:25.7]} 44. g5 {[%clk 0:00:41.6]}
44... Bg7 {[%clk 0:00:24.8]} 45. h4 {[%clk 0:00:41.6]} 45... Bf5+ {[%clk
0:00:24.8]} 46. Kd2 {[%clk 0:00:41.5]} 46... Kb4 {[%clk 0:00:21.9]} 47. Bd3
{[%clk 0:00:36.9]} 47... Bxd3 {[%clk 0:00:19.6]} 48. Kxd3 {[%clk 0:00:37.5]}
48... Kxb3 {[%clk 0:00:20.5]} 49. Rb1+ {[%clk 0:00:37.2]} 49... Ka2 {[%clk
0:00:19.1]} 50. Rb7 {[%clk 0:00:36.6]} 50... a4 {[%clk 0:00:16.4]} 51. Rxf7
{[%clk 0:00:36.2]} 51... Be5 {[%clk 0:00:15.7]} 52. fxe5 {[%clk 0:00:35.9]}
52... dxe5 {[%clk 0:00:16.6]} 53. d6 {[%clk 0:00:36.3]} 53... a3 {[%clk
0:00:16.3]} 54. d7 {[%clk 0:00:36.7]} 54... e4+ {[%clk 0:00:17.2]} 55. Kxe4
{[%clk 0:00:36.7]} 55... Ka1 {[%clk 0:00:18.1]} 56. d8=Q {[%clk 0:00:36.5]}
56... a2 {[%clk 0:00:19]} 57. Qxd4+ {[%clk 0:00:36.6]} 57... Kb1 {[%clk
0:00:18.7]} 58. Rf1+ {[%clk 0:00:36.5]} 58... Kc2 {[%clk 0:00:18.7]} 59. Rf2+
{[%clk 0:00:36.8]} 59... Kc1 {[%clk 0:00:17.3]} 60. Qb2+ {[%clk 0:00:36]} 60...
Kd1 {[%clk 0:00:17.1]} 61. Qd2# {[%clk 0:00:36.9]} 1-0

[Event "*** Titled Tuesday Blitz"]
[Site "Chess.com"]
[Date "2020.04.14"]
[Round "7"]
[White "TheoSlade"]
[Black "WastefulJustice"]
[Result "0-1"]
[WhiteElo "2277"]
[BlackElo "2446"]
[TimeControl "180+1"]
[EndTime "11:14:36 PDT"]
[Termination "WastefulJustice won by checkmate"]

1. d4 {[%clk 0:03:00.9]} 1... Nf6 {[%clk 0:02:59.3]} 2. c4 {[%clk 0:03:01.2]}
2... e6 {[%clk 0:02:59]} 3. g3 {[%clk 0:03:01.6]} 3... d5 {[%clk 0:02:58.4]} 4.
Bg2 {[%clk 0:03:01.8]} 4... Be7 {[%clk 0:02:56.4]} 5. Nf3 {[%clk 0:03:02.1]}
5... O-O {[%clk 0:02:55.7]} 6. O-O {[%clk 0:03:02.2]} 6... dxc4 {[%clk
0:02:55.6]} 7. Qc2 {[%clk 0:03:02.3]} 7... a6 {[%clk 0:02:55.3]} 8. a4 {[%clk
0:03:02.3]} 8... Bd7 {[%clk 0:02:53.5]} 9. Qxc4 {[%clk 0:03:02.4]} 9... Bc6
{[%clk 0:02:53.5]} 10. Bf4 {[%clk 0:03:02.5]} 10... a5 {[%clk 0:02:50.9]} 11.
Nc3 {[%clk 0:03:02.8]} 11... Na6 {[%clk 0:02:46]} 12. Rac1 {[%clk 0:03:02.2]}
12... Nd5 {[%clk 0:02:36]} 13. Bd2 {[%clk 0:02:35.6]} 13... Nb6 {[%clk
0:02:31.8]} 14. Qb3 {[%clk 0:02:19]} 14... Qe8 {[%clk 0:02:22.2]} 15. Ne5 {[%clk
0:02:05.4]} 15... Bxg2 {[%clk 0:02:20.4]} 16. Kxg2 {[%clk 0:02:06.3]} 16... Bd6
{[%clk 0:02:17]} 17. Rfd1 {[%clk 0:01:58.1]} 17... Bxe5 {[%clk 0:02:08.4]} 18.
dxe5 {[%clk 0:01:57.7]} 18... Nc5 {[%clk 0:02:00.8]} 19. Qc2 {[%clk 0:01:26.7]}
19... Qc6+ {[%clk 0:01:48.2]} 20. Kg1 {[%clk 0:01:24.4]} 20... Ncxa4 {[%clk
0:01:46.1]} 21. Nxa4 {[%clk 0:01:14.9]} 21... Qxc2 {[%clk 0:01:43.2]} 22. Rxc2
{[%clk 0:01:15.8]} 22... Nxa4 {[%clk 0:01:43.9]} 23. b3 {[%clk 0:01:15.2]} 23...
Nb6 {[%clk 0:01:36.4]} 24. Rxc7 {[%clk 0:01:15.7]} 24... Rfd8 {[%clk 0:01:22.9]}
25. Rxb7 {[%clk 0:01:09.4]} 25... Nd5 {[%clk 0:00:46.7]} 26. Bxa5 {[%clk
0:01:01.1]} 26... Rxa5 {[%clk 0:00:43.8]} 27. e4 {[%clk 0:01:01.1]} 27... g6
{[%clk 0:00:30.5]} 28. exd5 {[%clk 0:00:59.9]} 28... exd5 {[%clk 0:00:25.4]} 29.
Rd4 {[%clk 0:00:49.2]} 29... Ra2 {[%clk 0:00:21.2]} 30. Rb5 {[%clk 0:00:46.8]}
30... Rb2 {[%clk 0:00:21.1]} 31. Kg2 {[%clk 0:00:40]} 31... h5 {[%clk 0:00:20]}
32. Kf3 {[%clk 0:00:39.5]} 32... Rc8 {[%clk 0:00:18.7]} 33. Rbxd5 {[%clk
0:00:18.1]} 33... Rcc2 {[%clk 0:00:16.8]} 34. Rd8+ {[%clk 0:00:17]} 34... Kg7
{[%clk 0:00:16.5]} 35. h4 {[%clk 0:00:14.3]} 35... Rxf2+ {[%clk 0:00:16.4]} 36.
Ke4 {[%clk 0:00:14.8]} 36... Rxb3 {[%clk 0:00:14.2]} 37. R4d7 {[%clk 0:00:11.8]}
37... Rxg3 {[%clk 0:00:13.8]} 38. e6 {[%clk 0:00:10.6]} 38... Re2+ {[%clk
0:00:14.1]} 39. Kf4 {[%clk 0:00:11]} 39... Rg4+ {[%clk 0:00:14]} 40. Kf3 {[%clk
0:00:11.5]} 40... Rxe6 {[%clk 0:00:14.2]} 41. Ra8 {[%clk 0:00:10.2]} 41... Rxh4
{[%clk 0:00:13.2]} 42. Raa7 {[%clk 0:00:10.6]} 42... Rf6+ {[%clk 0:00:13.2]} 43.
Kg3 {[%clk 0:00:11.3]} 43... Rg4+ {[%clk 0:00:13.5]} 44. Kh3 {[%clk 0:00:11.3]}
44... Rf3+ {[%clk 0:00:13.2]} 45. Kh2 {[%clk 0:00:11.8]} 45... h4 {[%clk
0:00:12.4]} 46. Re7 {[%clk 0:00:10.5]} 46... h3 {[%clk 0:00:12.2]} 47. Reb7
{[%clk 0:00:10]} 47... Rg2+ {[%clk 0:00:12.1]} 48. Kh1 {[%clk 0:00:10.5]} 48...
Rf1# {[%clk 0:00:12.5]} 0-1

[Event "*** Titled Tuesday Blitz"]
[Site "Chess.com"]
[Date "2020.04.14"]
[Round "7"]
[White "ahachess"]
[Black "manitodeplomo"]
[Result "1-0"]
[WhiteElo "2341"]
[BlackElo "2477"]
[TimeControl "180+1"]
[EndTime "11:14:37 PDT"]
[Termination "ahachess won by resignation"]

1. d4 {[%clk 0:02:43.7]} 1... c5 {[%clk 0:02:59.9]} 2. d5 {[%clk 0:02:43.6]}
2... g6 {[%clk 0:02:59.7]} 3. e4 {[%clk 0:02:43.4]} 3... Bg7 {[%clk 0:03:00.1]}
4. Nf3 {[%clk 0:02:43.4]} 4... d6 {[%clk 0:03:00]} 5. Be2 {[%clk 0:02:42.5]}
5... Nf6 {[%clk 0:02:59.5]} 6. Nc3 {[%clk 0:02:42.3]} 6... O-O {[%clk
0:02:59.5]} 7. O-O {[%clk 0:02:42.3]} 7... Na6 {[%clk 0:02:58.9]} 8. Nd2 {[%clk
0:02:41.3]} 8... Nc7 {[%clk 0:02:59.4]} 9. a4 {[%clk 0:02:41.1]} 9... Rb8 {[%clk
0:02:53.5]} 10. Nc4 {[%clk 0:02:36.2]} 10... b6 {[%clk 0:02:53.2]} 11. Bg5
{[%clk 0:02:24.8]} 11... h6 {[%clk 0:02:52.5]} 12. Be3 {[%clk 0:02:21.4]} 12...
a6 {[%clk 0:02:50.3]} 13. f3 {[%clk 0:02:16.3]} 13... b5 {[%clk 0:02:49.3]} 14.
Na5 {[%clk 0:02:15.2]} 14... Bd7 {[%clk 0:02:47.1]} 15. axb5 {[%clk 0:02:12.9]}
15... axb5 {[%clk 0:02:48]} 16. Qd2 {[%clk 0:02:08.9]} 16... Kh7 {[%clk
0:02:45.1]} 17. Rfb1 {[%clk 0:02:00.3]} 17... b4 {[%clk 0:02:30.7]} 18. Nd1
{[%clk 0:02:00]} 18... Nb5 {[%clk 0:02:14.2]} 19. c3 {[%clk 0:01:52.8]} 19...
bxc3 {[%clk 0:02:00.3]} 20. bxc3 {[%clk 0:01:52.4]} 20... Qc7 {[%clk 0:01:53.6]}
21. Nc4 {[%clk 0:01:33.5]} 21... Ra8 {[%clk 0:01:49.2]} 22. Rxa8 {[%clk
0:01:30]} 22... Rxa8 {[%clk 0:01:50.1]} 23. Ne5 {[%clk 0:01:16.9]} 23... Nxc3
{[%clk 0:01:34.7]} 24. Qxc3 {[%clk 0:01:07]} 24... Ne8 {[%clk 0:01:27.7]} 25. f4
{[%clk 0:01:06]} 25... dxe5 {[%clk 0:01:22.2]} 26. Qxc5 {[%clk 0:00:56.2]} 26...
Qxc5 {[%clk 0:01:15.8]} 27. Bxc5 {[%clk 0:00:55.9]} 27... exf4 {[%clk
0:01:16.2]} 28. Bxe7 {[%clk 0:00:55.9]} 28... Bd4+ {[%clk 0:01:15.4]} 29. Kf1
{[%clk 0:00:54.2]} 29... Nf6 {[%clk 0:01:06.6]} 30. Bxf6 {[%clk 0:00:47.5]}
30... Bxf6 {[%clk 0:01:05.6]} 31. Rb7 {[%clk 0:00:47.1]} 31... Be8 {[%clk
0:01:02.5]} 32. d6 {[%clk 0:00:43.5]} 32... Rd8 {[%clk 0:01:01.5]} 33. Bc4
{[%clk 0:00:30.6]} 33... Kg7 {[%clk 0:00:59.5]} 34. Rb6 {[%clk 0:00:27.7]} 34...
Be5 {[%clk 0:00:58.5]} 35. Nf2 {[%clk 0:00:26.8]} 35... Rxd6 {[%clk 0:00:54.5]}
36. Rxd6 {[%clk 0:00:26.2]} 36... Bxd6 {[%clk 0:00:55.4]} 37. h3 {[%clk
0:00:25.6]} 37... Bd7 {[%clk 0:00:53.5]} 38. Nd3 {[%clk 0:00:23.5]} 38... g5
{[%clk 0:00:50.2]} 39. e5 {[%clk 0:00:21.7]} 39... Bc7 {[%clk 0:00:49.6]} 40.
Ke2 {[%clk 0:00:20.8]} 40... Bc6 {[%clk 0:00:48.8]} 41. Kf1 {[%clk 0:00:19.8]}
41... Be4 {[%clk 0:00:46.6]} 42. Nc5 {[%clk 0:00:18.5]} 42... Bf5 {[%clk
0:00:39.8]} 43. e6 {[%clk 0:00:18.5]} 43... Bb6 {[%clk 0:00:13.7]} 44. e7 {[%clk
0:00:17.4]} 1-0

[Event "*** Titled Tuesday Blitz"]
[Site "Chess.com"]
[Date "2020.04.14"]
[Round "7"]
[White "Tjktiger"]
[Black "Volodar_Murzin"]
[Result "1/2-1/2"]
[WhiteElo "2826"]
[BlackElo "2688"]
[TimeControl "180+1"]
[EndTime "11:14:39 PDT"]
[Termination "Game drawn by repetition"]

1. c4 {[%clk 0:03:00.9]} 1... Nf6 {[%clk 0:02:59.8]} 2. Nc3 {[%clk 0:03:01.2]}
2... g6 {[%clk 0:02:59.5]} 3. g3 {[%clk 0:03:01.7]} 3... Bg7 {[%clk 0:02:58.1]}
4. Bg2 {[%clk 0:03:02.2]} 4... O-O {[%clk 0:02:58.4]} 5. d4 {[%clk 0:03:02.8]}
5... d6 {[%clk 0:02:58.6]} 6. Nf3 {[%clk 0:03:03.3]} 6... Nbd7 {[%clk
0:02:58.3]} 7. O-O {[%clk 0:03:03.8]} 7... e5 {[%clk 0:02:58.5]} 8. e4 {[%clk
0:03:04.4]} 8... c6 {[%clk 0:02:58.3]} 9. h3 {[%clk 0:03:04.6]} 9... Qb6 {[%clk
0:02:58.2]} 10. Re1 {[%clk 0:03:04.4]} 10... exd4 {[%clk 0:02:46.8]} 11. Nxd4
{[%clk 0:03:05.3]} 11... Ne5 {[%clk 0:02:46.7]} 12. Na4 {[%clk 0:02:46]} 12...
Qa6 {[%clk 0:02:15.2]} 13. b3 {[%clk 0:02:40.8]} 13... b5 {[%clk 0:02:07.4]} 14.
cxb5 {[%clk 0:02:35]} 14... cxb5 {[%clk 0:02:08.3]} 15. Bf1 {[%clk 0:02:34.6]}
15... Bxh3 {[%clk 0:01:50.1]} 16. Bxh3 {[%clk 0:02:10]} 16... bxa4 {[%clk
0:01:45.2]} 17. bxa4 {[%clk 0:02:09.3]} 17... Rab8 {[%clk 0:01:23.9]} 18. Nb5
{[%clk 0:02:02.7]} 18... Rfd8 {[%clk 0:01:10.8]} 19. Bg2 {[%clk 0:01:43.3]}
19... Qb7 {[%clk 0:00:57.6]} 20. Bf4 {[%clk 0:01:37.1]} 20... a6 {[%clk
0:00:55.6]} 21. Nd4 {[%clk 0:01:12.1]} 21... Rdc8 {[%clk 0:00:48.7]} 22. Nb3
{[%clk 0:00:54.8]} 22... Qe7 {[%clk 0:00:42.7]} 23. Qe2 {[%clk 0:00:52.1]} 23...
Nh5 {[%clk 0:00:33.4]} 24. Be3 {[%clk 0:00:42.8]} 24... Nc4 {[%clk 0:00:26.1]}
25. Bd4 {[%clk 0:00:42.2]} 25... Bxd4 {[%clk 0:00:24.5]} 26. Nxd4 {[%clk
0:00:43.1]} 26... Rb2 {[%clk 0:00:22.2]} 27. Qg4 {[%clk 0:00:43]} 27... Rc5
{[%clk 0:00:15.8]} 28. Nf3 {[%clk 0:00:26.7]} 28... Nf6 {[%clk 0:00:13.9]} 29.
Qh4 {[%clk 0:00:26.1]} 29... Rh5 {[%clk 0:00:13.3]} 30. Qf4 {[%clk 0:00:25.6]}
30... Ne5 {[%clk 0:00:13.3]} 31. Red1 {[%clk 0:00:16.6]} 31... Nfd7 {[%clk
0:00:11.6]} 32. Nd4 {[%clk 0:00:13.2]} 32... Qd8 {[%clk 0:00:10.3]} 33. Rac1
{[%clk 0:00:12.5]} 33... Qb6 {[%clk 0:00:09.8]} 34. Rc8+ {[%clk 0:00:03.2]}
34... Kg7 {[%clk 0:00:09.9]} 35. Re8 {[%clk 0:00:03.1]} 35... Rb1 {[%clk
0:00:07.6]} 36. Ne6+ {[%clk 0:00:02.2]} 36... fxe6 {[%clk 0:00:06.7]} 37. Re7+
{[%clk 0:00:02.5]} 37... Kg8 {[%clk 0:00:06.4]} 38. Re8+ {[%clk 0:00:02.9]}
38... Kg7 {[%clk 0:00:06.6]} 39. Re7+ {[%clk 0:00:03.4]} 39... Kg8 {[%clk
0:00:06.5]} 40. Re8+ {[%clk 0:00:03.8]} 40... Kg7 {[%clk 0:00:06.8]} 1/2-1/2

[Event "*** Titled Tuesday Blitz"]
[Site "Chess.com"]
[Date "2020.04.14"]
[Round "7"]
[White "Talcrifice"]
[Black "mortngabriel"]
[Result "0-1"]
[WhiteElo "2537"]
[BlackElo "2396"]
[TimeControl "180+1"]
[EndTime "11:14:39 PDT"]
[Termination "mortngabriel won by resignation"]

1. d4 {[%clk 0:03:00.9]} 1... Nf6 {[%clk 0:02:59.9]} 2. c4 {[%clk 0:03:01]} 2...
e6 {[%clk 0:03:00.5]} 3. g3 {[%clk 0:03:01.3]} 3... d5 {[%clk 0:03:00.1]} 4. Nf3
{[%clk 0:03:01.2]} 4... dxc4 {[%clk 0:03:00.7]} 5. Bg2 {[%clk 0:03:01]} 5... Nc6
{[%clk 0:02:59.8]} 6. O-O {[%clk 0:02:59.7]} 6... Rb8 {[%clk 0:02:59.8]} 7. e3
{[%clk 0:02:54.7]} 7... b5 {[%clk 0:02:56.3]} 8. a4 {[%clk 0:02:54.9]} 8... a6
{[%clk 0:02:56.1]} 9. Nfd2 {[%clk 0:02:53.6]} 9... Bb7 {[%clk 0:02:51.6]} 10.
axb5 {[%clk 0:02:53]} 10... axb5 {[%clk 0:02:52.5]} 11. Nc3 {[%clk 0:02:53.3]}
11... Nb4 {[%clk 0:02:51]} 12. Bxb7 {[%clk 0:02:36.2]} 12... Rxb7 {[%clk
0:02:50.7]} 13. b3 {[%clk 0:02:27.6]} 13... cxb3 {[%clk 0:02:34.2]} 14. Qxb3
{[%clk 0:02:24]} 14... Be7 {[%clk 0:01:59.7]} 15. Ba3 {[%clk 0:02:12.4]} 15...
Nbd5 {[%clk 0:01:58.5]} 16. Bxe7 {[%clk 0:02:11.4]} 16... Nxe7 {[%clk 0:01:54]}
17. Nxb5 {[%clk 0:01:58.1]} 17... O-O {[%clk 0:01:29.9]} 18. Qc4 {[%clk
0:01:53.2]} 18... Qd5 {[%clk 0:00:59.4]} 19. Nc3 {[%clk 0:01:50.2]} 19... Qxc4
{[%clk 0:00:58.4]} 20. Nxc4 {[%clk 0:01:51.1]} 20... Ned5 {[%clk 0:00:37.5]} 21.
Nxd5 {[%clk 0:01:48.4]} 21... Nxd5 {[%clk 0:00:27.1]} 22. Rfc1 {[%clk
0:01:47.2]} 22... f6 {[%clk 0:00:20.6]} 23. e4 {[%clk 0:01:40.9]} 23... Nb4
{[%clk 0:00:19.8]} 24. Rab1 {[%clk 0:01:37.7]} 24... Rfb8 {[%clk 0:00:18.9]} 25.
Na5 {[%clk 0:01:26.9]} 25... Rb5 {[%clk 0:00:17.8]} 26. Nc4 {[%clk 0:01:05.5]}
26... Na2 {[%clk 0:00:17.5]} 27. Rxb5 {[%clk 0:01:03.1]} 27... Rxb5 {[%clk
0:00:18.4]} 28. Rc2 {[%clk 0:00:56.6]} 28... Rb1+ {[%clk 0:00:18]} 29. Kg2
{[%clk 0:00:56.4]} 29... Rc1 {[%clk 0:00:18.9]} 30. Rxc1 {[%clk 0:00:56]} 30...
Nxc1 {[%clk 0:00:19.8]} 31. Kf3 {[%clk 0:00:56]} 31... Kf7 {[%clk 0:00:19.2]}
32. Ke3 {[%clk 0:00:56]} 32... Nb3 {[%clk 0:00:18.6]} 33. Kd3 {[%clk 0:00:55.1]}
33... c5 {[%clk 0:00:17.9]} 34. d5 {[%clk 0:00:54]} 34... exd5 {[%clk
0:00:18.8]} 35. exd5 {[%clk 0:00:54.7]} 35... Ke7 {[%clk 0:00:19.1]} 36. Ke4
{[%clk 0:00:52]} 36... g6 {[%clk 0:00:18.9]} 37. g4 {[%clk 0:00:51.8]} 37... Kd7
{[%clk 0:00:16.3]} 38. f4 {[%clk 0:00:47.9]} 38... Nd4 {[%clk 0:00:16]} 39. h3
{[%clk 0:00:45.1]} 39... Ne2 {[%clk 0:00:15.9]} 40. g5 {[%clk 0:00:42.9]} 40...
Nc3+ {[%clk 0:00:14.4]} 41. Kd3 {[%clk 0:00:39.2]} 41... Nxd5 {[%clk 0:00:15.3]}
42. Ke4 {[%clk 0:00:39.6]} 42... Ke6 {[%clk 0:00:14.2]} 43. gxf6 {[%clk
0:00:35.1]} 43... Nxf6+ {[%clk 0:00:15.1]} 44. Kf3 {[%clk 0:00:35.5]} 44... Kd5
{[%clk 0:00:14.8]} 45. Ne3+ {[%clk 0:00:34.8]} 45... Kd4 {[%clk 0:00:15.3]} 46.
f5 {[%clk 0:00:34.6]} 46... c4 {[%clk 0:00:13.7]} 47. fxg6 {[%clk 0:00:30.9]}
47... hxg6 {[%clk 0:00:14.6]} 48. Nxc4 {[%clk 0:00:30.9]} 48... Kxc4 {[%clk
0:00:14.3]} 49. Kf4 {[%clk 0:00:31.4]} 49... Nh7 {[%clk 0:00:09]} 50. h4 {[%clk
0:00:28]} 50... Kd5 {[%clk 0:00:08.5]} 51. Kg4 {[%clk 0:00:26.3]} 51... Ke5
{[%clk 0:00:08.2]} 52. h5 {[%clk 0:00:26.2]} 52... g5 {[%clk 0:00:08.6]} 53. h6
{[%clk 0:00:26.7]} 53... Kf6 {[%clk 0:00:07.9]} 54. Kh5 {[%clk 0:00:26.8]} 54...
Kf7 {[%clk 0:00:07.3]} 55. Kg4 {[%clk 0:00:26.7]} 55... Kg6 {[%clk 0:00:07.6]}
0-1

[Event "*** Titled Tuesday Blitz"]
[Site "Chess.com"]
[Date "2020.04.14"]
[Round "7"]
[White "dey2580"]
[Black "ItsCheckM8Mate"]
[Result "1/2-1/2"]
[WhiteElo "2466"]
[BlackElo "2175"]
[TimeControl "180+1"]
[EndTime "11:14:39 PDT"]
[Termination "Game drawn by repetition"]

1. d4 {[%clk 0:03:00.9]} 1... Nf6 {[%clk 0:02:58.3]} 2. Nf3 {[%clk 0:03:00.9]}
2... c5 {[%clk 0:02:55.7]} 3. e3 {[%clk 0:03:00.8]} 3... cxd4 {[%clk 0:02:49.3]}
4. exd4 {[%clk 0:03:00.6]} 4... g6 {[%clk 0:02:48.6]} 5. Be2 {[%clk 0:02:54]}
5... Bg7 {[%clk 0:02:48.6]} 6. O-O {[%clk 0:02:54.2]} 6... O-O {[%clk
0:02:48.6]} 7. c4 {[%clk 0:02:54.6]} 7... b6 {[%clk 0:02:48.5]} 8. Nc3 {[%clk
0:02:53.7]} 8... Bb7 {[%clk 0:02:48.4]} 9. Bg5 {[%clk 0:02:52.3]} 9... d5 {[%clk
0:02:40.4]} 10. c5 {[%clk 0:02:46.4]} 10... bxc5 {[%clk 0:02:17.4]} 11. dxc5
{[%clk 0:02:45.9]} 11... Nbd7 {[%clk 0:02:10.6]} 12. Be3 {[%clk 0:01:58.7]}
12... e5 {[%clk 0:01:54]} 13. Bg5 {[%clk 0:01:51.6]} 13... e4 {[%clk 0:01:40.5]}
14. c6 {[%clk 0:01:31.9]} 14... exf3 {[%clk 0:01:27.8]} 15. cxb7 {[%clk
0:01:09.8]} 15... fxe2 {[%clk 0:01:27.3]} 16. Qxe2 {[%clk 0:01:04.7]} 16... Rb8
{[%clk 0:01:25.1]} 17. Nxd5 {[%clk 0:01:02.7]} 17... Qa5 {[%clk 0:00:59]} 18.
Ne7+ {[%clk 0:00:46.2]} 18... Kh8 {[%clk 0:00:58.9]} 19. Bxf6 {[%clk 0:00:45.7]}
19... Nxf6 {[%clk 0:00:49.3]} 20. Nc6 {[%clk 0:00:45.4]} 20... Qb6 {[%clk
0:00:47.7]} 21. Nxb8 {[%clk 0:00:44.9]} 21... Rxb8 {[%clk 0:00:47.5]} 22. Rac1
{[%clk 0:00:34.8]} 22... Qxb7 {[%clk 0:00:47.2]} 23. b3 {[%clk 0:00:34.6]} 23...
Re8 {[%clk 0:00:44.4]} 24. Qc4 {[%clk 0:00:34.7]} 24... h5 {[%clk 0:00:32.7]}
25. h3 {[%clk 0:00:33.8]} 25... Kg8 {[%clk 0:00:26.1]} 26. Rfd1 {[%clk
0:00:32.9]} 26... Bh6 {[%clk 0:00:21.8]} 27. Rc3 {[%clk 0:00:27.5]} 27... Qe7
{[%clk 0:00:18.1]} 28. Rf3 {[%clk 0:00:21.5]} 28... Bg7 {[%clk 0:00:15.9]} 29.
Re3 {[%clk 0:00:21.3]} 29... Qf8 {[%clk 0:00:15]} 30. Rxe8 {[%clk 0:00:19.6]}
30... Qxe8 {[%clk 0:00:15.4]} 31. Qc7 {[%clk 0:00:19.7]} 31... Kh7 {[%clk
0:00:14.7]} 32. Qxa7 {[%clk 0:00:19.4]} 32... Qe2 {[%clk 0:00:14.2]} 33. Rf1
{[%clk 0:00:15.4]} 33... Ne4 {[%clk 0:00:13.2]} 34. Qxf7 {[%clk 0:00:15.1]}
34... Qxa2 {[%clk 0:00:11.6]} 35. Qe6 {[%clk 0:00:10.4]} 35... Nd2 {[%clk
0:00:11.2]} 36. Re1 {[%clk 0:00:09.7]} 36... Qxb3 {[%clk 0:00:10.8]} 37. Qxb3
{[%clk 0:00:08.8]} 37... Nxb3 {[%clk 0:00:11.7]} 38. Re7 {[%clk 0:00:08.6]}
38... Nd4 {[%clk 0:00:11.3]} 39. g3 {[%clk 0:00:08]} 39... Nf5 {[%clk
0:00:11.2]} 40. Ra7 {[%clk 0:00:08.1]} 40... Kh6 {[%clk 0:00:11.6]} 41. Kg2
{[%clk 0:00:08.7]} 41... Bf6 {[%clk 0:00:11.7]} 42. h4 {[%clk 0:00:08.7]} 42...
Be5 {[%clk 0:00:11.5]} 43. Rb7 {[%clk 0:00:08.8]} 43... Bd4 {[%clk 0:00:11.7]}
44. Rd7 {[%clk 0:00:08.9]} 44... Bf6 {[%clk 0:00:11.7]} 45. Rf7 {[%clk
0:00:08.9]} 45... Bg7 {[%clk 0:00:11.8]} 46. Rb7 {[%clk 0:00:09.4]} 46... Bd4
{[%clk 0:00:12]} 47. Kf3 {[%clk 0:00:09]} 47... Bc5 {[%clk 0:00:12]} 48. Kg2
{[%clk 0:00:09.3]} 48... Bd4 {[%clk 0:00:12.1]} 1/2-1/2